[Event "Romanian Team Blitz Women 2022"]
[Site "Sebes"]
[Date "2022.12.04"]
[Round "3.2"]
[White "Ionica, Iulia-Ionela"]
[Black "Ionescu, Irina"]
[Result "0-1"]
[ECO "C41"]
[WhiteElo "2177"]
[BlackElo "2119"]
[Annotator "TA"]
[PlyCount "108"]
[EventDate "2022.12.04"]
[EventType "blitz"]
[EventCountry "ROU"]
[SourceTitle "playchess.com"]
[Source "ChessBase"]
[SourceQuality "1"]
[TimeControl "180+2"]

{[%evp 16,108,56,40,38,35,42,29,63,12,13,3,17,0,31,23,40,34,31,37,39,29,212,204,217,210,326,320,300,254,294,125,115,0,3,-86,-86,-80,-16,-21,-15,-12,7,0,10,0,51,48,67,18,28,10,14,14,22,30,64,31,24,37,110,-10,-9,-36,-40,-97,-73,-374,-273,-29995,-29996,-29996,-29997,-29997,-486,-29998,-22,-25,0,-29998,0,-236,0,-29998,-29999,-29999,-1021,-1016,-854,-1000,-837,-903,-863,-864,-851]} 1. e4 {[%emt 0:00:02]} d6 {[%emt 0:00:02]} 2. d4 {[%emt 0:00:02]} Nf6 {[%emt 0:00:01]} 3. Nc3 {[%emt 0:00:01]} e5 {[%emt 0:00:04]} 4. Nf3 {[%emt 0:00:07]} Nbd7 {[%emt 0:00:01]} 5. Bc4 {[%emt 0:00:10]} Be7 {[%emt 0:00:01]} 6. O-O {[%emt 0:00:05]} O-O {[%emt 0:00:04]} 7. Re1 {[%emt 0:00:02]} c6 {[%emt 0:00:01]} 8. a4 {[%emt 0:00:01]} b6 {[%emt 0:00:06] 8...b6 has lost popularity.} 9. Bg5 {[%emt 0:00:01]} h6 {[%emt 0:00:11] C41: Philidor Defence.} 10. Bh4 {[%emt 0:00:12]} a6 {[%emt 0:00:11]} 11. d5 {[%emt 0:00:13] [#]} c5 $146 {[%emt 0:00:12] White has an edge.} ({Predecessor:} 11... Bb7 12. dxc6 Bxc6 13. Qe2 Nc5 14. Bxf6 Bxf6 15. Bd5 Qd7 16. Bxc6 Qxc6 17. Nd5 Bd8 {½-½ (29) Zakhartsov,V (2486)-Khruschiov,A (2367) Moscow 2018}) 12. Bxf6 {[%emt 0:00:31]} (12. Nd2 $14) 12... Nxf6 $11 {[%emt 0:00:10]} 13. Bf1 {[%emt 0:00:01]} Bg4 {[%emt 0:00:07]} 14. h3 {[%emt 0:00:04]} Bh5 {[%emt 0:00:01]} 15. Be2 {[%emt 0:00:07]} Qc8 {[%emt 0:00:04]} 16. Nd2 $36 {[%emt 0:00:06][%cal Bf3d2,Bd2c4,Bc4d6,Bd6f5][%mdl 2080] White has the initiative.} Bxe2 {[%emt 0:00:07]} 17. Qxe2 {[%emt 0:00:03]} Rb8 {[%emt 0:00:02]} 18. Nc4 {[%emt 0:00:06]} Bd8 $2 {[%emt 0:00:18]} (18... g6 $11) 19. Nxd6 $18 {[%emt 0:00:07] Pair of Knights!} Qd7 {[%emt 0:00:03]} 20. Nf5 {[%emt 0:00:05]} b5 {[%emt 0:00:04]} (20... Ra8 $142 21. Red1 Re8) 21. axb5 {[%emt 0:00:03]} axb5 {[%emt 0:00:00]} 22. b3 {[%emt 0:00:37]} Kh7 {[%emt 0:00:19]} 23. Nd1 {[%emt 0:00:10]} (23. Ra6 $18) 23... Nxd5 $16 {[%emt 0:00:11][%cal Bf6d5,Bd5f4,Bf4d3][%mdl 96]} 24. c4 {[%emt 0:00:12]} (24. exd5 $16 Qxf5 25. Ra7 (25. Qxe5 $2 {perishes.} Qxe5 26. Rxe5 Bf6 $19)) 24... Nf4 $1 $11 {[%emt 0:00:09] Against g4} 25. Qg4 {[%emt 0:00:03]} (25. Qf1 $11 {keeps the balance.}) 25... g6 $17 {[%emt 0:00:15]} 26. Nfe3 {[%emt 0:00:09]} Qxg4 {[%emt 0:00:03] Black is more active.} (26... Qd4 $17 27. Ra7 Kg8) 27. Nxg4 $11 {[%emt 0:00:02]} bxc4 {[%emt 0:00:06]} 28. bxc4 {[%emt 0:00:01]} Rb4 {[%emt 0:00:05]} 29. Ra7 {[%emt 0:00:04]} Nd3 {[%emt 0:00:10]} 30. Re3 {[%emt 0:00:05]} Nf4 {[%emt 0:00:21]} ({Black should play} 30... h5 $1 $11) 31. Nxe5 $14 {[%emt 0:00:02] Rf3 is the strong threat.} Rb1 {[%emt 0:00:02]} 32. Re1 {[%emt 0:00:04]} (32. Rxf7+ $2 {is the wrong capture.} Rxf7 33. Nxf7 Rxd1+ 34. Kh2 Bc7 $19) (32. Rd7 $14) 32... Kg7 $11 {[%emt 0:00:05]} 33. Kf1 {[%emt 0:00:15]} Bf6 {[%emt 0:00:01] Inhibits g3.} 34. Nd7 {[%emt 0:00:05][%csl LRc5,LRf8]} Rd8 {[%emt 0:00:03] White must now prevent ...Nd3.} 35. Ne3 {[%emt 0:00:05]} Rxe1+ {[%emt 0:00:05]} 36. Kxe1 {[%emt 0:00:01] aiming for Nd5.} Bd4 {[%emt 0:00:00]} 37. Kf1 {[%emt 0:00:01]} Re8 {[%emt 0:00:00] [#]} (37... Nd3 $14) 38. g3 {[%emt 0:00:04]} (38. Nd5 $1 $16 {[%cal Rd5f4]} Nd3 39. f3) 38... Nxh3 {[%emt 0:00:00] Threatening ...Bxe3.} 39. Kg2 {[%emt 0:00:01]} Ng5 {[%emt 0:00:00]} 40. Nd5 {[%emt 0:00:03]} (40. e5 $1 $15) 40... Nxe4 {[%emt 0:00:00]} 41. f3 {[%emt 0:00:01][%mdl 8192]} (41. Nc7 $17 Rd8 42. Nb6) 41... Ng5 {[%emt 0:00:00] ( -> ...Re2+)} 42. f4 $2 {[%emt 0:00:04]} (42. Nf4 $19) 42... Re2+ {[%emt 0:00:00]} 43. Kf1 {[%emt 0:00:02]} Rf2+ {[%emt 0:00:00]} 44. Ke1 {[%emt 0:00:01] [#]} Nf3+ $1 {[%emt 0:00:00]} 45. Kd1 {[%emt 0:00:01]} Rf1+ $2 {[%emt 0:00:07]} (45... Bb2 46. Nxc5 Rd2#) 46. Ke2 {[%emt 0:00:02]} Rf2+ {[%emt 0:00:00][%mdl 8192]} (46... Nh2 $11 47. Nc7 g5 48. Nxc5 Bxc5 49. Ne6+ Kf6 50. Nxc5 gxf4 51. gxf4 Rxf4) 47. Kd1 {[%emt 0:00:01]} Rf1+ $2 {[%emt 0:00:05]} (47... Bb2 {mates} 48. Nxc5 Rd2#) 48. Kc2 $2 {[%emt 0:00:01]} (48. Ke2 $11 Rf2+ 49. Kd3 Ne1+ 50. Ke4 f5#) 48... Rf2+ $2 {[%emt 0:00:02]} (48... h5 $19 {Hoping for ...Rf2+.} 49. Nc7 Re1) 49. Kd3 $2 {[%emt 0:00:04][%mdl 8192]} (49. Kd1 $11 Bb2 50. Nxc5 Rd2#) 49... Ne1+ {[%emt 0:00:09]} 50. Ke4 {[%emt 0:00:03]} Re2+ {[%emt 0:00:02]} (50... f5# $142) 51. Ne3 $19 {[%emt 0:00:04] Black is clearly winning.} Rxe3+ {[%emt 0:00:01]} 52. Kd5 {[%emt 0:00:01]} Re7 {[%emt 0:00:05]} 53. Kc6 {[%emt 0:00:05]} Nc2 {[%emt 0:00:03]} 54. Ra4 {[%emt 0:00:07]} Nb4+ {[%emt 0:00:31] Black used his chance.   Weighted Error Value: White=0.69/Black=0.60} 0-1

[Event "Romanian Team Blitz Women 2022"]
[Site "Sebes"]
[Date "2022.12.04"]
[Round "3.3"]
[White "Schiopu, Andreea-Alexandra"]
[Black "Bucur, Denisa-Andreea"]
[Result "1/2-1/2"]
[ECO "D02"]
[WhiteElo "1716"]
[BlackElo "1953"]
[Annotator "TA"]
[PlyCount "96"]
[EventDate "2022.12.04"]
[EventType "blitz"]
[EventCountry "ROU"]
[SourceTitle "playchess.com"]
[Source "ChessBase"]
[SourceQuality "1"]
[TimeControl "180+2"]

{[%evp 12,96,6,-37,16,13,19,0,0,0,14,10,29,24,31,-15,67,55,50,52,56,-39,-24,-62,-53,-41,-37,-28,-25,-51,-41,-37,0,-25,-34,-39,0,-16,-13,-32,104,0,100,104,80,0,184,158,155,123,183,34,35,28,208,198,183,30,78,0,0,0,277,-1673,1235,1227,1154,882,1526,0,1747,1697,2545,2243,2244,2137,1817,1383,1961,1257,1193,0,0,0,0,0,0]} 1. Nf3 {[%emt 0:00:02]} d5 {[%emt 0:00:02]} 2. d4 {[%emt 0:00:03]} Nf6 {[%emt 0:00:04]} 3. Bf4 {[%emt 0:00:02]} c5 {[%emt 0:00:02]} 4. c3 {[%emt 0:00:05]} Nc6 {[%emt 0:00:02]} 5. e3 {[%emt 0:00:32]} Qb6 {[%emt 0:00:25]} 6. Qb3 {[%emt 0:00:02]} c4 {[%emt 0:00:01]} 7. Qc2 $1 {[%emt 0:00:00] [#] The main line 7.Qc2 scores better than 7.Qxb6.} Bg4 {[%emt 0:00:06] D02: 1 d4 d5 2 Nf3 sidelines, including 2...Nf6 3 g3 and 2...Nf6 3 Bf4.} ({Black should play} 7... Bf5 $1 $15 8. Qc1 (8. Qxf5 $2 Qxb2 9. Nbd2 Qxa1+ $19) 8... Nh5) 8. Nbd2 {[%emt 0:00:11]} e6 {[%emt 0:00:08]} 9. Be2 {[%emt 0:00:09]} Bf5 {[%emt 0:00:04]} 10. Qc1 {[%emt 0:00:03]} h6 {[%emt 0:00:17]} 11. h3 {[%emt 0:00:10]} Qd8 {[%emt 0:00:11]} 12. O-O {[%emt 0:00:06]} Bd6 {[%emt 0:00:05]} 13. Ne5 {[%emt 0:00:05]} (13. Bxd6 $14 {was preferrable.} Qxd6 14. b3) 13... O-O {[%emt 0:00:08]} (13... Qc7 $11) 14. Nxc6 $1 $14 {[%emt 0:00:16]} bxc6 {[%emt 0:00:02]} 15. Bxd6 {[%emt 0:00:02]} Qxd6 {[%emt 0:00:02]} 16. Nf3 {[%emt 0:00:02] [#]} (16. b3 $14) 16... c5 $146 {[%emt 0:00:10]} ({Predecessor:} 16... Rfb8 17. Ne5 a5 18. f3 c5 19. g4 Bh7 20. Rf2 Rb7 21. Bf1 Ne8 22. f4 Nf6 {0-1 (42) Wilke,H (1515)-Woerz,M (2027) Berlin 2018}) 17. Bd1 {[%emt 0:00:01]} cxd4 {[%emt 0:00:14]} 18. exd4 {[%emt 0:00:09]} Rfb8 {[%emt 0:00:27]} 19. Bc2 {[%emt 0:00:10]} Ne4 {[%emt 0:00:13]} (19... Bxc2 {simplifies} 20. Qxc2 Ne4 21. b3 Qc7) 20. Ne5 {[%emt 0:00:08]} f6 {[%emt 0:00:05]} 21. Ng4 {[%emt 0:00:21]} Bh7 {[%emt 0:00:38]} 22. Re1 {[%emt 0:00:20]} (22. b3 $5 {[%cal Rb3c4]}) 22... Rb6 {[%emt 0:00:07]} 23. f3 {[%emt 0:00:08]} Ng3 {[%emt 0:00:01]} 24. Bxh7+ {[%emt 0:00:04]} Kxh7 {[%emt 0:00:01]} 25. Qc2+ {[%emt 0:00:07]} Kg8 {[%emt 0:00:02] [#]} (25... Kh8 $15 {keeps the upper hand.}) 26. Qg6 {[%emt 0:00:05]} (26. Nxf6+ $1 $16 {[%mdl 512]} gxf6 27. Qg6+ Kh8 28. Qxh6+ (28. Qxf6+ Kh7 $11) 28... Kg8 29. Qg6+ (29. Qxf6 Qf8 $15) 29... Kh8 30. Qh6+ (30. Qxf6+ Kh7 $16) 30... Kg8 31. Qg6+ (31. Qxf6 Qf8 $11) 31... Kh8 32. Qh6+ (32. Qxf6+ Kh7 $14)) 26... Kh8 {[%emt 0:00:09] [#]} (26... Qf4 $11 {remains equal.}) 27. Nxf6 $1 $16 {[%emt 0:00:20]} gxf6 {[%emt 0:00:01]} 28. Qxf6+ {[%emt 0:00:00]} (28. Qxh6+ $16 Kg8 29. Qg6+ (29. Qxf6 Qf8 $15) 29... Kh8 30. Qxf6+ Kh7 31. Re5) 28... Kg8 $2 {[%emt 0:00:03]} (28... Kh7 $11 29. Qf7+ Kh8 30. Qf6+ Kh7 31. Qf7+ Kh8 32. Qf6+) 29. Qg6+ $18 {[%emt 0:00:01]} (29. Qxh6 Qf8 30. Qh4 (30. Qg6+ Qg7 $15) 30... Nf5 31. Qg4+ (31. Qh5 Qf6 $17) 31... Kh7 32. Qh5+ Kg8 $15) 29... Kh8 {[%emt 0:00:01] Strongly threatening ...Nf5.} 30. Qxh6+ {[%emt 0:00:01]} Kg8 {[%emt 0:00:01]} 31. Re5 {[%emt 0:00:03]} (31. Qg6+ $18 Kh8 32. Re5) 31... Nf5 $14 {[%emt 0:00:01]} 32. Qg6+ {[%emt 0:00:02][%mdl 1024] White has compensation.} Kf8 $2 {[%emt 0:00:01]} (32... Ng7 $1 $11) 33. g4 $18 {[%emt 0:00:04]} Ne7 {[%emt 0:00:02]} 34. Qh6+ {[%emt 0:00:03]} ({Better is} 34. Qf6+ $18 Ke8 35. Qh8+ Kd7 36. Qxa8) 34... Ke8 $1 $11 {[%emt 0:00:01]} 35. Qh8+ {[%emt 0:00:01]} (35. f4 $16 {Qh8+ is the strong threat.} Kd7 36. Rae1) 35... Kd7 $1 {[%emt 0:00:02]} 36. Qxa8 {[%emt 0:00:01]} Nc6 {[%emt 0:00:06][%mdl 8192] [#]} (36... Nc8 $1 $11 {and Black has nothing to worry.}) 37. Rh5 $4 {[%emt 0:00:03][%mdl 8192]} (37. Qh8 $1 $18 Nxe5 38. Qg7+ (38. Qxe5 Qxe5 39. dxe5 Rxb2 $16) (38. dxe5 Qc5+ 39. Kh1 Qf2 $11) 38... Ke8 39. Qh8+ (39. dxe5 Qc5+ 40. Kh1 Rxb2 $16) (39. Qxe5 Qxe5 40. dxe5 Rxb2 $16) 39... Kd7 40. Qxe5 (40. dxe5 Qc5+ 41. Kh1 Qf2 $11)) 37... Nd8 $4 {[%emt 0:00:04][%mdl 8192]} (37... Qg3+ $19 38. Kh1 Qxf3+ 39. Kg1 Rxb2 40. Rh7+ Kd6 41. Qf8+ Qxf8) 38. Rh7+ $18 {[%emt 0:00:01]} Ke8 {[%emt 0:00:03]} 39. Rh8+ {[%emt 0:00:02]} ({Worse is} 39. Qxa7 Qg3+ 40. Kh1 Qxf3+ 41. Kg1 Qg3+ 42. Kh1 Qf3+ 43. Kg1 Qg3+ 44. Kh1 Qf3+ $11) 39... Kf7 {[%emt 0:00:02] [#]} 40. Qxd8 $2 {[%emt 0:00:02]} (40. Qxa7+ Rb7 $16) (40. f4 $1 $18 Qb8 41. Rxd8 Qxa8 42. Rxa8) 40... Qxd8 $4 {[%emt 0:00:01][%mdl 8192]} (40... Qg3+ $11 41. Kf1 Qxf3+ 42. Ke1 (42. Kg1 Qg3+ 43. Kh1 Qf3+ 44. Kg1 Qg3+ 45. Kh1 Qf3+ 46. Kg1 $11) 42... Qe3+ 43. Kf1 Qf3+ 44. Kg1 Qg3+ 45. Kh1 Qf3+ 46. Kg1 Qg3+ 47. Kh1 Qf3+ 48. Kg1) 41. Rxd8 {[%emt 0:00:01]} Rxb2 {[%emt 0:00:01]} 42. Rd7+ {[%emt 0:00:01]} Kg6 {[%emt 0:00:01]} 43. Rxa7 {[%emt 0:00:02] aiming for Re1.} Kg5 {[%emt 0:00:01]} 44. Ra6 {[%emt 0:00:02]} Kf4 {[%emt 0:00:01]} 45. Rf1 {[%emt 0:00:04]} Kg3 {[%emt 0:00:01]} 46. Rxe6 $2 {[%emt 0:00:01]} (46. Rd1 $18 Rg2+ 47. Kf1) 46... Rg2+ $11 {[%emt 0:00:02] The position is equal.} 47. Kh1 {[%emt 0:00:02] White threatens Rg1 and mate.} Rh2+ {[%emt 0:00:01]} 48. Kg1 {[%emt 0:00:01]} Rg2+ {[%emt 0:00:01] Weighted Error Value: White=0.83/Black=0.44} 1/2-1/2

[Event "Romanian Team Blitz Women 2022"]
[Site "Sebes"]
[Date "2022.12.04"]
[Round "3.4"]
[White "Sariteanu, Sabina"]
[Black "Bulmaga, Irina"]
[Result "0-1"]
[ECO "C39"]
[WhiteElo "1752"]
[BlackElo "2426"]
[Annotator "TA"]
[PlyCount "128"]
[EventDate "2022.12.04"]
[EventType "blitz"]
[EventCountry "ROU"]
[SourceTitle "playchess.com"]
[Source "ChessBase"]
[SourceQuality "1"]
[TimeControl "180+2"]

{[%evp 10,128,-26,-66,-61,-26,98,78,59,42,99,96,155,0,161,39,194,116,121,113,91,0,0,0,15,-57,-11,-152,-152,-1037,-954,-949,-840,-1491,-729,-1480,0,-29988,-29987,-29989,-301,-257,-274,-288,-290,-337,-335,-300,29,28,39,0,0,-37,38,36,35,46,614,-7,16,0,29,-6,0,-6,-7,-96,0,0,11,7,38,-18,16,19,22,0,0,0,0,-90,-64,-316,0,0,0,0,20,-5013,60,0,0,0,0,-217,-225,-210,-217,-210,-114,-135,0,-167,-179,-354,-354,-357,-394,-464,-449,-530,-449,-552,-530,-29985,-29986,-29987,-29988,-29988,-29989]} 1. e4 {[%emt 0:00:01]} e5 {[%emt 0:00:01]} 2. f4 {[%emt 0:00:00]} exf4 {[%emt 0:00:01]} 3. Nf3 {[%emt 0:00:01]} g5 {[%emt 0:00:01]} 4. h4 {[%emt 0:00:01]} g4 {[%emt 0:00:01]} 5. Ne5 {[%emt 0:00:01]} Nf6 {[%emt 0:00:02]} 6. Bc4 {[%emt 0:00:02]} d5 {[%emt 0:00:01] C39: King's Gambit Accepted: 3 Nf3 g5 4 h4.} 7. exd5 {[%emt 0:00:04]} Nxd5 {[%emt 0:00:36]} (7... Bd6 $11 8. d4 Nh5) 8. Nc3 {[%emt 0:00:33]} (8. Nxg4 Qe7+ 9. Kf1 Rg8 $17) 8... Be6 {[%emt 0:00:19] White is better.} 9. d4 {[%emt 0:00:54] [#] Black must now prevent Bxd5.} (9. Nxg4 $2 Nxc3 10. bxc3 Bxc4 $19) 9... Be7 $146 {[%emt 0:00:22]} (9... Nc6 $14 10. Nxd5 Bxd5 11. Nxc6 bxc6 12. Qe2+ Qe7 13. Bxd5 cxd5) ({Predecessor:} 9... Bb4 10. Bd2 Bxc3 11. bxc3 Rg8 12. Qe2 c6 13. Bxd5 cxd5 14. Bxf4 Qe7 15. Qb5+ Nc6 16. Nxc6 bxc6 {½-½ (46) Emilio,J-Ibanez Rico,F Spain 1992}) 10. O-O {[%emt 0:00:25]} (10. Nxg4 $2 Nxc3 11. bxc3 Bxh4+ 12. Kf1 Bxc4+ $19) 10... f3 {[%emt 0:00:15]} ({Black should play} 10... Nxc3 11. bxc3 Bxc4 12. Nxc4 Qd5) 11. gxf3 $2 {[%emt 0:00:07]} ({White has to play} 11. Bxd5 $1 $16 Bxd5 12. Nxg4) 11... g3 $2 {[%emt 0:00:02]} (11... Nc6 $1 $11 12. Bxd5 (12. fxg4 Nxc3 13. bxc3 Nxe5 $17) 12... Bxd5) 12. f4 {[%emt 0:00:10]} (12. Re1 $1 $18) 12... Nf6 {[%emt 0:00:36]} (12... Bxh4 $2 13. Qh5 Nf6 14. Qxh4 $18) (12... Nxc3 $1 $14 13. bxc3 Bxc4 14. Nxc4 Qd5) 13. d5 {[%emt 0:00:19]} (13. Bxe6 $18 fxe6 14. Ne4 $1) 13... Bc5+ $16 {[%emt 0:00:11]} 14. Kg2 {[%emt 0:00:12]} Bf5 {[%emt 0:00:03]} 15. d6 {[%emt 0:00:07]} (15. Kxg3 $2 Rg8+ 16. Kf3 Ng4 $19) (15. Bd3 $16 Qc8 16. Re1) 15... O-O $11 {[%emt 0:00:01]} 16. dxc7 {[%emt 0:00:29]} (16. Kxg3 cxd6 17. Bd3 Qc8 18. Bxf5 Qxf5 $17) 16... Qxc7 {[%emt 0:00:02] Strongly threatening ...Nc6. The board is on fire.} 17. Kxg3 {[%emt 0:00:02]} (17. Bd3 $11 Rd8 18. Qf3 Bxd3 19. cxd3 (19. Nxd3 Kh8 $11)) 17... Kh8 $1 $15 {[%emt 0:00:06]} 18. Nb5 {[%emt 0:00:03]} (18. Nd5 $1 $11 Nxd5 19. Qxd5) 18... Qe7 $17 {[%emt 0:00:06]} (18... Rg8+ 19. Kh2 Qe7 20. Nxf7+ (20. Bxf7 Ng4+ 21. Kg3 Nxe5+ 22. Bxg8 Qg7+ 23. Kh2 Ng4+ 24. Kh1 Be4+ 25. Rf3 Nf2+ 26. Kh2 Nxd1 27. Rg3 Qh6) 20... Kg7 21. Nfd6 $18) 19. Nxf7+ $2 {[%emt 0:00:02]} (19. Nf3 $17 Nc6 20. b4) 19... Rxf7 $19 {[%emt 0:00:06]} 20. Bxf7 {[%emt 0:00:01]} Ne4+ {[%emt 0:00:23]} 21. Kf3 {[%emt 0:00:03]} Qxf7 {[%emt 0:00:04]} (21... Qxh4 $142 22. Nd4 Qh3+ 23. Ke2 Ng3+ 24. Kf2 Nxf1) 22. Qd8+ {[%emt 0:00:01]} Bf8 $2 {[%emt 0:00:01] This pair of bishops is nice.} (22... Kg7 $19 {( -> ...Qh5+)} 23. Qc7 Nd7 24. Qxc5 Nexc5 25. Rg1+ Kf8) 23. Nc7 $2 {[%emt 0:00:03][%mdl 8192]} (23. b3 $11 Kg7 24. Rg1+ (24. Nc7 $2 Qh5+ 25. Ke3 Bc5+ 26. Kd3 Nc6 $19) 24... Kh6 25. Ba3 Bxa3 26. Nxa3) 23... Nc6 {[%emt 0:00:11]} 24. Qd5 {[%emt 0:00:03]} Qxd5 $2 {[%emt 0:00:04]} (24... Qg6 {mates} 25. Qxf5 Qxf5 26. Ne6 Qh3+ 27. Kxe4 Qxe6+ 28. Kf3 Qh3+ 29. Ke2 Re8+ 30. Kf2 Bc5+ 31. Be3 Bxe3+ 32. Ke2 Bxf4+ 33. Kf2 Qg3#) 25. Nxd5 {[%emt 0:00:01]} Nd4+ {[%emt 0:00:01]} 26. Kg2 {[%emt 0:00:03]} Bc5 {[%emt 0:00:08]} (26... Nxc2 $2 27. Ne3 Nxa1 28. Nxf5 $19) 27. Be3 {[%emt 0:00:05]} Rg8+ {[%emt 0:00:01]} (27... Nxc2 28. Bxc5 Nxc5 29. Rac1 $19) 28. Kh2 {[%emt 0:00:01]} Ne6 {[%emt 0:00:07]} ({Stronger than} 28... Nxc2 29. Bxc5 Nxc5 30. Ne7 $15) (28... Rg4 $19 29. Bxd4+ Bxd4) 29. Bxc5 $11 {[%emt 0:00:01]} N6xc5 {[%emt 0:00:01]} 30. Rg1 {[%emt 0:00:01] aiming for Rxg8+.} (30. Ne7 $5 {[%cal Re7f5]} Rf8 31. Nxf5 Rxf5 32. Rad1 $16) 30... Rd8 {[%emt 0:00:03]} 31. Ne7 {[%emt 0:00:01]} Rd2+ {[%emt 0:00:08]} (31... Be6 $15) 32. Rg2 $14 Rxg2+ {[%emt 0:00:00]} 33. Kxg2 {[%emt 0:00:01]} Nf6 $2 {[%emt 0:00:01][%mdl 8192]} 34. Rd1 $2 {[%emt 0:00:01]} (34. Nxf5 $18 Kg8 35. Re1) 34... Be4+ {[%emt 0:00:01]} 35. Kf2 {[%emt 0:00:01]} Kg7 {[%emt 0:00:01]} 36. Rd8 {[%emt 0:00:01]} (36. Ke3 {is interesting.} Ne6 37. f5 Kf7 38. Ng8) 36... Ne6 {[%emt 0:00:02]} 37. Ra8 {[%emt 0:00:01]} a6 {[%emt 0:00:01]} 38. Rb8 {[%emt 0:00:01]} (38. c4 $11 {remains equal.}) 38... Ng4+ {[%emt 0:00:01]} ({Don't do} 38... Bxc2 39. Rxb7 Kf8 40. Nc6 $14) ({Much worse is} 38... Nxf4 $6 39. Nc8 $15) (38... Kf7 $1 $17 {[%cal Rf7e7]} 39. Nc8 Nd7) 39. Kg3 $11 {[%emt 0:00:01]} Nf6 {[%emt 0:00:01]} 40. f5 {[%emt 0:00:00]} Nc5 {[%emt 0:00:02]} (40... Nh5+ {keeps more tension.} 41. Kf2 Kf6 42. Ke3 Bh1) 41. b4 {[%emt 0:00:01]} (41. Rc8 $14 Ncd7 42. Rc7) 41... Na4 {[%emt 0:00:02][%mdl 1024] Black has compensation.} 42. c4 {[%emt 0:00:01][%cal Oe7d5]} Nb6 {[%emt 0:00:03] Inhibits Nd5.} 43. Rd8 {[%emt 0:00:02]} Nxc4 {[%emt 0:00:02]} 44. Kf4 {[%emt 0:00:02]} Kf7 {[%emt 0:00:01]} 45. Nc8 {[%emt 0:00:02]} (45. Ng8 $1 $11 {keeps the balance.} Nxg8 46. Kxe4) 45... Bc6 $1 $17 {[%emt 0:00:02]} 46. Nd6+ $2 {[%emt 0:00:02][%mdl 8192]} (46. Na7 $15) 46... Nxd6 $2 {[%emt 0:00:02]} ({Better is} 46... Ke7 $19 47. Nxc4 Kxd8) 47. Rxd6 $11 {[%emt 0:00:01]} Ke7 {[%emt 0:00:01]} 48. Rd2 {[%emt 0:00:01]} h6 {[%emt 0:00:03]} 49. Rg2 $2 {[%emt 0:00:01][%mdl 8192]} Kf7 $2 {[%emt 0:00:01]} (49... Bxg2 $19 50. Ke5 Bc6) 50. Re2 {[%emt 0:00:01]} (50. Rg6 $14) 50... Nd5+ {[%emt 0:00:02]} 51. Ke5 {[%emt 0:00:02]} Nxb4 {[%emt 0:00:02]} 52. f6 $2 {[%emt 0:00:01]} (52. Rd2 $11 {and White stays safe.}) 52... Nd3+ $1 $19 {[%emt 0:00:02]} 53. Kf5 {[%emt 0:00:01]} Bd7+ {[%emt 0:00:02]} 54. Ke4 {[%emt 0:00:02] [#]} Nc5+ {[%emt 0:00:02]} (54... Kxf6 $1 $19 {...Bc6+ is the strong threat.} 55. Rd2 Bb5) 55. Ke5 {[%emt 0:00:02]} Nd3+ {[%emt 0:00:03]} (55... Bb5 $17 56. Rd2 Nd7+ 57. Kf5 Nf8) 56. Kd6 {[%emt 0:00:02]} (56. Ke4 $1 $11 {and White has nothing to worry.}) 56... Bc6 {[%emt 0:00:04]} 57. Re3 $2 {[%emt 0:00:01]} (57. Rd2 {was the only defense.} Ne1 58. Re2) 57... Nf4 {[%emt 0:00:03]} 58. Re7+ {[%emt 0:00:04]} Kxf6 {[%emt 0:00:01]} 59. Rh7 {[%emt 0:00:03]} Kg6 {[%emt 0:00:01]} 60. Re7 {[%emt 0:00:02]} Ng2 {[%emt 0:00:03]} 61. Rc7 {[%emt 0:00:04]} Nxh4 {[%emt 0:00:02]} 62. Re7 {[%emt 0:00:02]} Nf5+ {[%emt 0:00:02] Black mates.} 63. Ke6 {[%emt 0:00:01]} Nxe7 {[%emt 0:00:01]} 64. Kxe7 {[%emt 0:00:01]} h5 {[%emt 0:00:00] A wild game.   Weighted Error Value: White=1.12/Black=0.75} 0-1

[Event "Romanian Team Blitz Women 2022"]
[Site "Sebes"]
[Date "2022.12.04"]
[Round "3.5"]
[White "Cosma, Elena-Luminita"]
[Black "Chicarosie, Ioana-Bianca"]
[Result "1-0"]
[ECO "E07"]
[WhiteElo "2244"]
[BlackElo "1815"]
[Annotator "TA"]
[PlyCount "53"]
[EventDate "2022.12.04"]
[EventType "blitz"]
[EventCountry "ROU"]
[SourceTitle "playchess.com"]
[Source "ChessBase"]
[SourceQuality "1"]
[TimeControl "180+2"]

{[%evp 14,53,6,5,9,0,0,0,0,0,-9,-41,-10,-8,4,19,75,27,39,-16,-13,-29,-20,-13,0,0,10,9,7,7,11,6,306,204,475,451,664,543,1387,1382,1622,1562]} 1. d4 {[%emt 0:00:01]} d5 {[%emt 0:00:03]} 2. Nf3 {[%emt 0:00:01]} Nf6 {[%emt 0:00:01]} 3. g3 {[%emt 0:00:01]} e6 {[%emt 0:00:03]} 4. Bg2 {[%emt 0:00:00]} Be7 {[%emt 0:00:09]} 5. O-O {[%emt 0:00:02]} O-O {[%emt 0:00:02]} 6. c4 {[%emt 0:00:00]} Nbd7 {[%emt 0:00:07]} 7. Nbd2 {[%emt 0:00:06]} c5 {[%emt 0:00:18]} 8. cxd5 {[%emt 0:00:02]} Nxd5 {[%emt 0:00:02] E07: Closed Catalan: Main Line (5 Nf3 0-0 6 0-0 Nbd7).} 9. Nc4 {[%emt 0:00:10]} b5 {[%emt 0:00:36] Inhibits e4.} 10. Nce5 {[%emt 0:00:07]} Bb7 {[%emt 0:00:01] Against Nc6. The position is equal.} 11. Nxd7 {[%emt 0:00:51]} Qxd7 {[%emt 0:00:01] [#]} 12. Bg5 $146 {[%emt 0:00:23]} ({Predecessor:} 12. dxc5 Bxc5 13. Ng5 Rfd8 14. Qc2 g6 15. Qxc5 {1-0 (15) Haselhorst,H (2089)-Greuter,T (1590) Neumarkt am Wallersee 2012}) 12... Bxg5 {[%emt 0:00:16]} 13. Nxg5 {[%emt 0:00:01]} h6 {[%emt 0:00:06]} 14. Ne4 {[%emt 0:00:09]} c4 {[%emt 0:00:37]} (14... cxd4 $11 15. Rc1 Qe7) 15. Nc5 {[%emt 0:00:06]} (15. a4 $16) 15... Qc7 $11 {[%emt 0:00:01]} 16. Nxb7 {[%emt 0:00:06]} (16. a4 $14) 16... Qxb7 {[%emt 0:00:01]} 17. a4 {[%emt 0:00:29]} a6 {[%emt 0:00:28]} 18. Qd2 {[%emt 0:00:02]} Rfc8 {[%emt 0:00:08]} 19. e4 {[%emt 0:00:12][%cal Be2e4,Be4d5,Bd5d6][%mdl 32] Prevents b4.} Nf6 {[%emt 0:00:12]} 20. d5 {[%emt 0:00:01]} exd5 {[%emt 0:00:06]} 21. exd5 {[%emt 0:00:05] [#] Black must now prevent d6.} Qd7 {[%emt 0:00:03]} 22. d6 {[%emt 0:00:10] Threatens to win with axb5.} Ra7 $2 {[%emt 0:00:01][%mdl 8192] Black cannot hold the game after this.} (22... Rab8 $11 {and Black stays safe.}) 23. Rfe1 {[%emt 0:00:09][%cal Bf1e1,Be1e7,Be7a7][%mdl 32]} Qd8 {[%emt 0:00:17] Prevents Re7.} (23... Qf5 24. axb5 Qxb5) 24. axb5 $18 {[%emt 0:00:03] White is clearly winning.} a5 {[%emt 0:00:03]} (24... Qb6 $142 25. Qe3 (25. bxa6 Rxa6 26. Rxa6 Qxa6 $18) 25... Rb8 26. Qxb6 Rxb6) 25. Bc6 {[%emt 0:00:07]} Nd7 {[%emt 0:00:04]} 26. Re7 {[%emt 0:00:30]} Nb6 {[%emt 0:00:03]} 27. Rxa7 {[%emt 0:00:00] Weighted Error Value: White=0.28 (precise) /Black=0.76} 1-0